bitfinex-derivatives/quotes_ETHF0:USTF0_20250824
["timestamp","ask_amount","ask_price","bid_price","bid_amount"]
[1756001171017,19.076,4787.7,4787.6,0.95998]
[1756001171217,19.5516657,4787.7,4787.6,1.77228]
[1756001171412,19.2237,4787.7,4787.6,1.77228]
[1756001171616,19.7554,4787.7,4787.6,1.77228]
[1756001171918,19.8953,4787.7,4787.6,1.77228]
[1756001172118,19.9832,4787.7,4787.6,1.77228]
[1756001172322,3.2078,4787.8,4787.6,0.95998]
[1756001172522,3.2078,4787.8,4787.7,1.3544]
[1756001172922,3.5922,4787.8,4787.7,1.3544]
[1756001173115,4.0271,4787.8,4787.7,1.3544]
[1756001176134,3.2078,4787.8,4787.7,1.3544]
[1756001176329,19.9798,4788.2,4788.1,0.5421]
[1756001176533,19.9798,4788.2,4788.1,1.77224]
[1756001176735,20.221,4788.2,4788.1,1.77224]
[1756001176938,20.69617117,4788.2,4788.1,1.42804]
[1756001177632,1.147,4788.2,4788.1,1.77224]
[1756001179334,0.6786,4788.2,4788.1,1.77224]
[1756001179536,3.2078,4788.3,4788.2,1.3544]
[1756001179927,3.6497,4788.3,4788.2,1.3544]
[1756001181142,3.3555,4788.3,4788.2,1.3544]
[1756001181341,3.8864,4788.3,4788.2,1.3544]
[1756001181643,4.0262,4788.3,4788.2,1.3544]
[1756001182234,3.2078,4788.3,4788.2,1.3544]
[1756001182434,0.6786,4788.6,4788.5,1.7722]
[1756001183234,3.2078,4788.9,4788.7,0.95989]
[1756001183431,3.2078,4788.9,4788.8,1.3544]
[1756001183432,4.1136,4788.9,4788.8,1.3544]
[1756001183635,4.3548,4788.9,4788.8,1.3544]
[1756001183936,4.3548,4788.9,4788.8,1.0102]
[1756001184134,0.2412,4788.8,4788.0,0.8123]
[1756001184439,1.147,4788.7,4788.6,1.77219]
[1756001184740,0.9058,4788.7,4788.6,1.77219]
[1756001184940,0.1477,4788.7,4788.6,1.77219]
[1756001185342,0.3844,4788.7,4788.6,1.77219]
[1756001185541,0.6786,4788.7,4788.6,1.77219]
[1756001186947,0.1477,4788.7,4788.6,1.77219]
[1756001187848,3.2952,4788.9,4788.2,1.04458]
[1756001187849,3.3555,4788.9,4788.8,1.77218]
[1756001188039,3.2078,4788.9,4788.8,1.77218]
[1756001188644,3.3555,4788.9,4788.8,1.77218]
[1756001188845,3.6486,4788.9,4788.8,1.77218]
[1756001189040,4.0251,4788.9,4788.8,1.77218]
[1756001189247,4.1117,4788.9,4788.8,1.77218]
[1756001192443,4.3529,4788.9,4788.8,0.2293]
[1756001192643,0.6209,4788.8,4788.7,0.41778]
[1756001192847,0.6209,4788.8,4788.7,1.42798]
[1756001192848,1.1439,4788.8,4788.7,1.42798]
[1756001193048,1.1439,4788.8,4788.7,1.77218]
[1756001193348,0.9027,4788.8,4788.7,1.77218]
[1756001195142,0.9027,4788.8,4788.7,2.04206607]
[1756001197747,0.9027,4788.8,4788.7,1.77218]
[1756001197954,0.9027,4788.8,4788.7,2.04232809]
[1756001198752,1.1306,4788.8,4788.7,1.69812809]
[1756001198948,1.1306,4788.8,4788.7,2.02922809]
[1756001199149,0.8251,4789.1,4789.0,0.56406]
[1756001199355,19.8901,4789.1,4789.0,1.72936]
[1756001199854,20.2053,4789.1,4789.0,1.72936]
[1756001200550,0.9124,4788.4,4788.3,4.5194]
[1756001200754,0.9124,4788.4,4788.3,5.20754983]
[1756001200955,0.4541,4788.4,4788.3,5.20754983]
[1756001201155,0.16,4788.4,4788.3,5.20754983]
[1756001202257,0.4541,4788.4,4788.3,5.20754983]
[1756001203651,0.9124,4788.7,4788.6,0.4178]
[1756001203853,0.9124,4788.7,4788.6,1.20782983]
[1756001204051,1.1403,4788.7,4788.6,1.99972983]
[1756001204253,1.1403,4788.7,4788.6,1.66862983]
[1756001206153,1.1403,4788.7,4788.6,0.27032983]
[1756001206354,0.16,4787.9,4787.8,0.2368]
[1756001206659,0.6768,4787.6,4787.5,3.2078]
[1756001206862,0.6768,4787.2,4787.1,0.224]
[1756001207063,0.6768,4787.2,4787.0,0.41793]
[1756001207264,0.4489,4787.1,4787.0,1.72953]
[1756001207654,0.3235,4787.1,4787.0,1.72953]
[1756001207860,0.1838,4787.1,4787.0,1.72953]
[1756001209562,0.16,4787.1,4787.0,1.72953]
[1756001210065,0.1111,4787.4,4787.3,0.41791]
[1756001210368,3.4551,4787.8,4787.7,1.3116]
[1756001210562,4.108071,4787.8,4787.7,1.3116]
[1756001210763,4.359771,4787.8,4787.7,1.3116]
[1756001211259,4.131871,4787.8,4787.7,1.3116]
[1756001211469,3.6567,4787.8,4787.7,1.3116]
[1756001212270,3.8846,4787.8,4787.7,1.3116]
[1756001213272,3.8846,4787.8,4787.7,0.9805]
[1756001213571,0.6768,4787.5,4787.4,1.5055]
[1756001214176,0.6768,4787.5,4787.4,1.7295]
[1756001215871,0.3378,4787.2,4787.1,0.7919]
[1756001216072,0.6768,4787.2,4787.1,1.72952]
[1756001216271,0.4489,4787.2,4787.1,1.72952]
[1756001216472,0.3235,4787.2,4787.1,1.72952]
[1756001216666,0.1838,4787.2,4787.1,1.72952]
[1756001216872,0.16,4787.2,4787.1,1.72952]
[1756001217068,0.0238,4787.5,4787.4,0.4179]
[1756001217274,19.065,4787.9,4787.8,1.72947]
[1756001217275,0.3378,4787.9,4787.8,1.72947]
[1756001217674,0.3616,4787.9,4787.8,1.72947]
[1756001217869,19.1533,4788.1,4788.0,0.41785]
[1756001218073,0.16,4788.7,4788.2,1.0185]
[1756001218377,0.1838,4788.7,4788.6,1.7294]
[1756001218677,1.09459,4788.7,4788.6,1.3116]
[1756001218981,1.09459,4788.7,4788.6,0.4608]
[1756001219167,0.4489,4788.7,4788.6,1.3116]
[1756001219369,0.6768,4788.7,4788.6,1.3116]
[1756001219878,0.6768,4788.7,4788.6,0.9805]
[1756001220178,0.3235,4787.9,4787.8,1.26867]
[1756001220378,0.4489,4787.9,4787.8,1.26867]
[1756001220679,0.3616,4787.9,4787.8,1.49267]
[1756001220867,0.3616,4787.9,4787.8,1.72947]
[1756001221070,0.16,4787.9,4787.8,1.72947]
[1756001221272,3.2078,4788.3,4788.2,1.085]
[1756001221474,3.2078,4788.3,4788.2,1.3116]
[1756001221678,19.067,4788.7,4788.6,0.5197]
[1756001221875,19.227,4788.7,4788.6,1.3116]
[1756001222080,19.5159,4788.7,4788.6,1.3116]
[1756001223477,19.5159,4788.7,4788.6,1.7294]
[1756001224277,3.2078,4788.9,4788.8,1.73378]
[1756001224470,3.3592,4788.9,4788.8,1.73378]
[1756001224677,3.5589,4788.9,4788.8,1.73378]
[1756001224976,3.6459,4788.9,4788.8,1.73378]
[1756001225478,3.2078,4788.9,4788.8,1.73378]
[1756001226171,19.3938,4789.2,4789.1,0.71455]
[1756001226368,19.5041,4789.2,4789.1,1.73375]
[1756001228674,19.7357,4789.2,4789.1,1.73375]
[1756001231279,19.7337,4789.2,4789.1,1.73375]
[1756001233376,19.7337,4789.2,4789.1,1.316]
[1756001233570,19.7337,4789.2,4789.1,0.9721]
[1756001234178,19.7337,4789.2,4789.1,0.6753]
[1756001234374,19.7337,4789.2,4788.8,0.3439]
[1756001234375,0.6697,4788.9,4788.8,0.564]
[1756001234581,0.6697,4788.9,4788.8,1.50278]
[1756001234880,0.6697,4788.9,4788.8,1.73378]
[1756001235280,19.7327,4788.9,4788.8,1.73378]
[1756001235680,20.20735781,4788.9,4788.8,1.73378]
[1756001236385,20.20735781,4788.9,4788.8,0.86888]
[1756001236574,20.20735781,4788.9,4788.8,0.64878]
[1756001236776,0.3278,4788.5,4788.4,0.231]
[1756001236980,0.3278,4788.5,4788.3,0.41782]
[1756001236981,0.3278,4788.4,4788.1,0.63793]
[1756001237185,0.6697,4788.2,4788.1,0.4511]
[1756001237385,1.08757,4787.8,4787.7,0.41787]
[1756001237680,0.3511,4787.6,4787.2,0.2201]
[1756001237885,0.3511,4787.6,4786.1,1.21509519]
[1756001237886,0.3278,4786.8,4786.7,0.93896]
[1756001238081,19.7327,4786.8,4786.7,0.93896]
[1756001238481,19.7327,4786.8,4786.7,0.79326]
[1756001239286,0.6697,4786.6,4786.5,0.231]
[1756001239482,0.6697,4786.6,4786.5,0.752]
[1756001239690,0.4381,4787.0,4786.9,0.93894]
[1756001239888,19.5001,4787.0,4786.9,1.73394]
[1756001240084,19.7317,4787.0,4786.9,1.73394]
[1756001240485,19.5001,4787.0,4786.9,1.316]
[1756001240686,19.7317,4787.0,4786.9,1.316]
[1756001240886,19.7317,4787.0,4786.9,0.9721]
[1756001241486,19.7317,4787.0,4786.9,1.316]
[1756001241487,0.3511,4787.0,4786.9,1.316]
[1756001241688,3.5216,4787.5,4787.4,1.0959]
[1756001241888,3.5216,4787.5,4787.4,1.7339]
[1756001241889,3.6823823,4787.5,4787.4,1.7339]
[1756001242083,0.0233,4788.0,4787.9,0.93886]
[1756001242278,0.0233,4788.0,4787.4,1.04475]
[1756001242279,0.3138,4788.5,4788.4,1.51371]
[1756001242480,0.3138,4788.5,4788.4,1.73381]
[1756001242785,0.62591307,4788.5,4788.4,1.73381]
[1756001242990,0.82561307,4788.5,4788.4,1.73381]
[1756001243179,0.62591307,4788.5,4788.4,1.73381]
[1756001243384,22.4272,4788.8,4788.7,0.93879]
[1756001243686,23.06409691,4788.8,4788.7,1.73379]
[1756001243886,23.18839691,4788.8,4788.7,1.73379]
[1756001244685,23.41999691,4788.8,4788.7,1.73379]
[1756001245687,22.6269,4788.8,4788.5,0.4178]
[1756001245888,0.3278,4788.4,4788.3,0.41782]
[1756001246085,19.7367,4788.4,4788.3,0.41782]
[1756001246284,19.7367,4788.4,4788.3,0.86892]
[1756001247186,19.7367,4788.4,4788.3,1.38992]
[1756001247391,19.5051,4788.4,4788.3,1.73382]
[1756001247691,19.7367,4788.4,4788.3,1.73382]
[1756001247890,0.6697,4788.4,4788.3,1.38992]
[1756001248086,19.7357,4788.4,4788.3,1.38992]
[1756001248993,19.7357,4788.4,4788.3,0.2242]
[1756001249187,0.3292,4788.1,4788.0,0.41784]
[1756001249383,19.5044,4788.1,4788.0,1.73384]
[1756001249582,19.4171,4788.1,4788.0,1.73384]
[1756001249992,0.3149,4788.1,4788.0,1.73384]
[1756001250187,0.1514,4788.4,4788.3,0.71462]
[1756001250493,3.3592,4788.7,4788.6,1.316]
[1756001250885,3.5227,4788.7,4788.6,1.316]
[1756001251086,3.5609,4788.7,4788.6,1.316]
[1756001251385,3.6482,4788.7,4788.6,1.316]
[1756001254093,3.8831,4788.7,4788.5,0.4178]
[1756001254301,0.3255,4788.4,4788.3,0.41782]
[1756001254589,0.6706,4788.4,4788.3,0.41782]
[1756001254895,0.6706,4788.4,4788.3,0.86532]
[1756001255195,0.6706,4788.4,4788.3,0.41782]
[1756001255693,0.6706,4788.4,4788.3,0.63882]
[1756001255892,0.6706,4788.4,4788.3,1.41302]
[1756001256094,0.6706,4788.4,4788.3,1.74252]
[1756001257197,0.1714,4788.4,4788.3,1.74252]
[1756001257696,0.3116,4788.4,4788.3,1.74252]
[1756001257897,0.4357,4788.4,4788.3,1.74252]
[1756001259593,0.6706,4788.4,4788.3,1.74252]
[1756001259798,0.6706,4788.4,4788.3,0.9952]
[1756001260900,0.6706,4788.4,4788.3,0.221]
[1756001261498,0.1402,4787.9,4787.8,0.221]
[1756001261701,19.7336,4787.9,4787.8,0.41786]
[1756001261895,19.7336,4787.9,4787.8,1.42806]
[1756001262697,19.4987,4787.9,4787.8,1.74256]
[1756001263902,19.7336,4787.9,4787.8,1.74256]
[1756001265395,19.7336,4787.9,4787.8,0.9952]
[1756001266005,19.7336,4787.9,4787.8,1.3247]
[1756001266297,0.1481,4787.9,4787.8,1.3247]
[1756001266902,0.1714,4787.9,4787.8,1.3247]
[1756001268004,0.6706,4787.9,4787.8,1.3247]
[1756001268998,0.3255,4787.7,4787.6,0.41788]
[1756001269200,0.6706,4787.7,4787.6,0.63888]
[1756001269401,0.6706,4787.7,4787.6,1.41308]
[1756001269603,0.4357,4787.7,4787.6,1.74258]
[1756001269805,19.4118,4788.1,4788.0,1.74255]
[1756001270006,0.1714,4788.1,4788.0,1.74255]
[1756001270206,3.2078,4788.2,4788.1,1.3247]
[1756001271201,19.063,4788.6,4788.4,0.96551]
[1756001271397,19.2111,4788.6,4788.5,1.3247]
[1756001271602,19.2344,4788.6,4788.5,1.3247]
[1756001271908,19.3746,4788.6,4788.5,1.3247]
[1756001272107,19.84482053,4788.6,4788.5,1.3247]
[1756001272404,19.4987,4788.6,4788.5,1.3247]
[1756001273106,19.96892198,4788.6,4788.5,1.3247]
[1756001273306,19.7336,4788.6,4788.5,1.3247]
[1756001273811,19.4987,4788.6,4788.5,1.3247]
[1756001274108,19.96893667,4788.6,4788.5,1.3247]
[1756001274811,20.20383667,4788.6,4788.5,1.3247]
[1756001275104,20.20383667,4788.6,4788.5,0.9952]
[1756001277310,20.20383667,4788.6,4788.5,1.3247]
[1756001277617,20.20383667,4788.6,4788.5,0.9952]
[1756001279014,0.1853,4788.3,4788.0,0.221]
[1756001279315,0.6706,4788.1,4788.0,0.41785]
[1756001279515,20.20387653,4788.1,4788.0,0.41785]
[1756001280509,0.6706,4788.0,4787.9,0.41785]
[1756001280717,1.14087653,4788.0,4787.9,0.41785]
[1756001281117,1.14087653,4788.0,4787.9,0.86535]
[1756001281415,1.14087653,4788.0,4787.9,1.58745]
[1756001281717,1.14087653,4788.0,4787.9,1.74255]
[1756001282517,0.90597653,4788.0,4787.9,1.74255]
[1756001282817,1.14087653,4788.0,4787.9,1.74255]
[1756001283117,1.14087653,4788.0,4787.9,1.41305]
[1756001284112,1.14087653,4788.0,4787.9,1.74265]
[1756001284719,19.96797653,4788.0,4787.9,1.74265]
[1756001285620,19.96808236,4788.0,4787.9,1.74265]
[1756001285925,19.4977,4788.0,4787.9,1.74265]
[1756001286923,0.4048,4788.5,4788.4,1.70781]
[1756001287121,19.85018351,4788.5,4788.4,1.70781]
[1756001287323,19.3798,4788.5,4788.4,1.98373205]
[1756001287726,3.3629,4788.7,4788.6,0.9374]
[1756001288037,22.4483,4788.7,4788.6,1.98372205]
[1756001288324,22.7121,4788.7,4788.6,1.7078]
[1756001289220,3.4733,4789.2,4788.7,1.04446]
[1756001289424,3.6501,4789.2,4789.1,1.70775]
[1756001289625,1.13504143,4789.2,4789.1,1.70775]
[1756001289825,1.13504143,4789.2,4789.1,1.37815]
[1756001290329,0.6647,4789.2,4789.1,1.65383233]
[1756001290522,0.6647,4789.2,4789.1,1.98343233]
[1756001294424,0.6647,4789.2,4789.1,1.98326327]
[1756001295431,0.6647,4789.2,4789.1,0.27551327]
[1756001295631,3.8725,4789.2,4789.1,0.27551327]
[1756001295931,4.34229188,4789.2,4789.1,0.27551327]
[1756001297830,0.3319,4788.9,4788.8,0.41777]
[1756001298136,19.7247,4788.9,4788.8,0.69319884]
[1756001298632,19.7247,4788.9,4788.8,0.27542884]
[1756001299231,20.19451715,4788.9,4788.8,0.27542884]
[1756001299938,0.2944,4788.1,4788.0,0.63874]
[1756001300130,19.6618,4788.1,4788.0,1.70784]
[1756001300330,19.4394,4788.1,4788.0,1.70784]
[1756001300535,19.058,4788.1,4788.0,1.70784]
[1756001301936,0.3814,4788.6,4788.5,1.7078]
[1756001302132,19.82226144,4788.6,4788.5,1.7078]
[1756001302337,19.90926144,4788.6,4788.5,1.7078]
[1756001302637,20.13166144,4788.6,4788.5,1.7078]
[1756001303131,19.90926144,4788.6,4788.5,1.7078]
[1756001303442,19.2131,4788.6,4788.5,1.7078]
[1756001304331,0.1551,4788.6,4788.5,1.7078]
[1756001304534,19.4394,4788.9,4788.8,1.70778]
[1756001304731,19.90925415,4788.9,4788.8,1.70778]
[1756001305338,0.76425415,4788.9,4788.8,1.70778]
[1756001305531,0.2944,4788.9,4788.8,1.70778]
[1756001305835,0.1551,4788.9,4788.8,1.70778]
[1756001308137,0.3814,4788.9,4788.8,1.70778]
[1756001308640,0.3825,4788.9,4788.8,1.70778]
[1756001308939,0.2955,4788.9,4788.8,1.70778]
[1756001309335,0.1562,4788.9,4788.8,1.70778]
[1756001310136,19.057,4789.0,4788.8,1.70778]
[1756001310341,19.057,4789.0,4788.9,1.29]
[1756001310538,0.1562,4789.0,4788.9,1.29]
[1756001310741,3.5052,4789.2,4789.1,1.1346]
[1756001310941,22.5622,4789.2,4789.1,1.29]
[1756001311242,22.6511,4789.2,4789.1,1.29]
[1756001311544,22.8735,4789.2,4789.1,1.29]
[1756001311942,22.8735,4789.2,4789.1,1.56935775]
[1756001312142,23.34335211,4789.2,4789.1,1.56935775]
[1756001312538,23.34335211,4789.2,4789.1,1.23975775]
[1756001313144,23.34335211,4789.2,4789.1,0.27935775]
[1756001314035,4.28635211,4789.2,4789.0,0.41776]
[1756001314241,20.13480217,4789.1,4789.0,0.87086]
[1756001314544,20.13480217,4789.1,4789.0,1.84903583]
[1756001314944,20.13480217,4789.1,4789.0,0.91934433]
[1756001315446,20.13480217,4789.1,4789.0,1.15034433]
[1756001315646,19.6648,4789.1,4789.0,1.15034433]
[1756001315846,19.6648,4789.1,4789.0,2.00964433]
[1756001316248,20.13496834,4789.1,4789.0,0.27948433]
[1756001316653,20.13496834,4789.1,4789.0,1.59188433]
[1756001317441,20.13496834,4789.1,4789.0,1.59201784]
[1756001317641,20.13496834,4789.1,4789.0,1.26071784]
[1756001317846,20.13496834,4789.1,4789.0,0.27961784]
[1756001318047,24.13496834,4789.1,4789.0,0.27961784]
[1756001318253,24.13496834,4789.1,4789.0,0.03821784]
[1756001318547,23.52616834,4789.1,4788.6,0.41779]
[1756001318752,0.2308,4788.7,4788.6,0.41779]
[1756001318955,19.75596834,4788.7,4788.6,0.41779]
[1756001319153,0.70096834,4788.7,4788.6,0.63989]
[1756001319347,19.75596834,4788.7,4788.6,0.2221]
[1756001319743,0.2308,4788.5,4788.4,0.2221]
[1756001319946,1.11877834,4788.5,4788.4,0.2221]
[1756001320552,0.70096834,4788.5,4788.4,0.2221]
[1756001321356,0.2281,4788.2,4788.1,0.2221]
[1756001321551,0.41786,4787.9,4787.6,0.98018]
[1756001321756,0.142,4787.6,4787.5,0.41789]
[1756001321959,19.61559,4787.6,4787.5,0.2221]
[1756001322255,19.196,4787.6,4787.5,1.3124]
[1756001322452,3.4369,4788.2,4788.1,1.3124]
[1756001322653,22.87384009,4788.2,4788.1,1.3124]
[1756001323058,22.96094009,4788.2,4788.1,1.3124]
[1756001323656,23.37877009,4788.2,4788.1,1.3124]
[1756001323859,23.38047009,4788.2,4788.1,0.2221]
[1756001324154,22.96094009,4788.2,4788.1,0.5998]
[1756001324359,22.96094009,4788.2,4788.1,1.3124]
[1756001324955,3.2078,4788.2,4788.1,1.3124]
[1756001325159,3.4369,4789.1,4789.0,0.94576]
[1756001325356,22.96061581,4789.1,4789.0,1.73016]
[1756001325564,22.4038,4789.1,4789.0,1.73016]
[1756001325763,22.87348909,4789.1,4789.0,1.73016]
[1756001326164,22.96058909,4789.1,4789.0,1.73016]
[1756001327860,22.96058909,4789.1,4789.0,0.3688]
[1756001328060,22.96228909,4789.1,4789.0,0.2221]
[1756001328462,22.87518909,4789.1,4789.0,0.2221]
[1756001328967,22.87348909,4789.1,4789.0,0.2221]
[1756001329261,22.96058909,4789.1,4789.0,0.2221]
[1756001329463,22.96058909,4789.1,4789.0,0.5998]
[1756001329665,22.96058909,4789.1,4789.0,0.3688]
[1756001329966,22.96058909,4789.1,4789.0,0.2221]
[1756001330359,22.96058909,4789.1,4789.0,1.59930283]
[1756001330560,22.96258909,4789.1,4789.0,1.59930283]
[1756001331164,22.96258909,4789.1,4789.0,0.50900283]
[1756001331568,22.96258909,4789.1,4789.0,1.59930283]
[1756001332068,22.96158909,4789.1,4789.0,1.59930283]
[1756001332769,22.96158909,4789.1,4789.0,1.26800283]
[1756001332971,22.96158909,4789.1,4789.0,1.10740283]
[1756001333674,22.96158909,4789.1,4789.0,0.87640283]
[1756001333973,22.96328909,4789.1,4789.0,0.51064644]
[1756001334568,22.96328909,4789.1,4789.0,0.28854644]
[1756001335268,22.96328909,4789.1,4789.0,0.19974644]
[1756001335469,0.41781,4788.4,4788.3,0.2221]
[1756001335674,22.67961,4788.4,4788.3,0.2221]
[1756001338974,22.2618,4788.4,4788.3,0.2221]
[1756001339672,22.2618,4788.4,4788.0,0.2221]
[1756001339872,0.41785,4788.0,4787.7,0.41787]
[1756001340066,22.2618,4788.4,4787.8,0.63996]
[1756001340067,19.053,4787.9,4787.8,0.63996]
[1756001340465,19.053,4787.9,4787.5,3.4299]
[1756001340670,19.053,4787.9,4787.5,0.2221]
[1756001340874,0.41789,4787.5,4787.2,0.64001]
[1756001341068,19.053,4787.4,4787.0,0.41793]
[1756001341381,19.053,4787.3,4787.2,1.3124]
[1756001341576,19.053,4787.3,4787.2,0.2221]
[1756001341971,0.41792,4787.2,4786.9,0.64004]
[1756001342167,0.41792,4787.2,4787.0,0.41793]
[1756001342477,19.053,4787.3,4786.5,0.2221]
[1756001342673,0.41797,4786.7,4786.5,0.2221]
[1756001342979,3.2078,4786.8,4786.1,0.41801]
[1756001342980,0.41798,4786.5,4786.1,0.41801]
[1756001343181,0.41798,4786.5,4786.3,0.2221]
[1756001343379,19.052,4786.6,4786.3,0.2221]
[1756001343776,19.052,4786.6,4786.1,0.7808]
[1756001344075,19.052,4786.6,4786.5,0.241]
[1756001344276,19.052,4786.6,4786.5,0.622]
[1756001344870,19.052,4786.6,4786.5,0.8633]
[1756001345070,19.052,4786.6,4786.5,0.622]
[1756001345273,19.052,4786.6,4786.5,0.241]
[1756001346479,19.052,4786.6,4786.5,0.622]
[1756001346673,19.052,4786.6,4786.5,1.369]
[1756001346971,0.03636806,4787.3,4786.4,0.41798]
[1756001346972,3.66207806,4787.3,4787.2,0.241]
[1756001347175,0.41794,4786.9,4786.6,0.5398]
[1756001347383,19.055,4786.8,4786.7,0.381]
[1756001347679,19.055,4786.8,4786.7,0.79896]
[1756001347881,19.055,4786.8,4786.7,1.03996]
[1756001348580,19.055,4786.8,4786.7,1.78696]
[1756001349282,3.66207806,4787.3,4786.9,0.4715]
[1756001349484,19.47292,4787.2,4787.0,0.241]
[1756001349784,0.41793,4787.1,4786.9,0.2305]
[1756001349982,0.41794,4787.0,4786.6,0.95776]
[1756001350280,19.055,4787.2,4786.7,0.2305]
[1756001350281,0.41795,4786.9,4786.7,0.2305]
[1756001350481,0.41795,4786.9,4786.8,0.241]
[1756001350683,22.68175,4786.9,4786.8,0.241]
[1756001350876,22.2638,4786.9,4786.8,0.241]
[1756001352270,22.2638,4786.9,4786.8,0.4715]
[1756001353180,22.2638,4786.9,4786.8,0.622]
[1756001354384,19.056,4786.9,4786.8,0.622]
[1756001357686,19.056,4786.9,4786.8,0.4715]
[1756001358580,19.056,4786.9,4786.8,0.241]
[1756001358780,22.2638,4786.9,4786.5,0.241]
[1756001358979,0.41797,4786.6,4786.5,0.241]
[1756001359185,19.47397,4786.6,4786.5,0.241]
[1756001359878,19.056,4786.6,4786.5,0.241]
[1756001360380,19.056,4786.6,4786.5,0.622]
[1756001360778,19.056,4786.6,4786.5,1.369]
[1756001364186,19.056,4786.6,4786.5,1.63693072]
[1756001366089,19.056,4786.6,4786.5,0.26793072]
[1756001366386,0.41804,4785.9,4785.7,3.4488]
[1756001366583,19.056,4785.8,4785.7,3.4488]
[1756001366885,19.056,4785.8,4785.7,3.71706343]
[1756001367086,19.056,4785.8,4785.7,0.50926343]
[1756001368188,19.056,4785.8,4785.7,0.70534495]
[1756001368385,19.056,4785.8,4785.7,0.50926343]
[1756001368786,0.0023,4785.8,4785.7,0.50926343]
[1756001369083,19.0583,4785.8,4785.7,0.50926343]
[1756001369293,19.0583,4785.8,4785.7,0.70534557]
[1756001369489,19.0583,4785.8,4785.7,0.50926343]
[1756001369881,19.0599,4785.8,4785.7,0.26826343]
[1756001370291,19.0599,4785.8,4785.7,0.50926343]
[1756001370991,19.0599,4785.8,4785.7,0.73976343]
[1756001371892,19.0599,4785.8,4785.7,0.241]
[1756001372094,19.0599,4785.8,4785.7,0.50964277]
[1756001373290,19.0599,4785.8,4785.7,0.74014277]
[1756001373689,19.0608,4785.8,4785.7,0.74014277]
[1756001374899,19.0608,4785.8,4785.7,0.50964277]
[1756001374900,19.0617,4785.8,4785.7,0.50964277]
[1756001378689,19.0617,4785.8,4785.7,0.74164277]
[1756001379193,19.0608,4785.8,4785.7,0.74164277]
[1756001381803,19.0608,4785.8,4785.7,0.473]
[1756001382005,19.0608,4785.8,4785.7,0.74144304]
[1756001383202,19.0617,4785.8,4785.7,0.50944304]
[1756001383803,22.2695,4785.8,4785.7,0.26844304]
[1756001384300,22.2665,4785.8,4785.3,0.2377]
[1756001384500,0.0052,4785.1,4785.0,0.4181]
[1756001384705,19.0645,4785.1,4785.0,0.92412759]
[1756001385504,19.0645,4785.1,4785.0,1.15612759]
[1756001385710,19.0636,4785.1,4785.0,1.15612759]
[1756001386012,19.0636,4785.1,4785.0,2.03642759]
[1756001386215,0.0015,4785.1,4785.0,2.03642759]
[1756001386918,0.003,4785.1,4785.0,2.03642759]
[1756001387313,0.0053,4785.1,4785.0,2.03642759]
[1756001387521,0.0067,4785.7,4785.6,0.95436]
[1756001387822,19.0627,4785.7,4785.6,1.76806]
[1756001388012,19.0636,4785.7,4785.6,1.76806]
[1756001388610,19.0636,4785.7,4785.6,1.18996]
[1756001388918,0.42657,4785.4,4785.3,0.2377]
[1756001389215,0.42657,4785.4,4785.3,0.26837529]
[1756001391820,0.4233,4785.1,4785.0,0.2377]
[1756001392119,19.4826,4785.1,4785.0,0.50764604]
[1756001394523,19.4826,4785.1,4785.0,0.73964604]
[1756001395128,19.4826,4785.1,4785.0,0.73982787]
[1756001396423,19.0636,4785.1,4785.0,0.73982787]
[1756001397129,19.0645,4785.1,4785.0,0.50782787]
[1756001398225,19.0645,4785.1,4785.0,0.2377]
[1756001398423,19.0645,4785.1,4785.0,0.50789613]
[1756001399930,19.0645,4785.1,4785.0,0.26779613]
[1756001400233,0.42046,4784.4,4784.3,0.2377]
[1756001400429,19.47646,4784.4,4784.3,0.2377]
[1756001400630,19.47646,4784.4,4784.3,0.4697]
[1756001400830,19.47646,4784.4,4784.3,0.6249]
[1756001401129,19.056,4784.4,4784.3,1.35]
[1756001401523,3.2078,4784.7,4784.6,0.5363]
[1756001401724,3.2078,4784.7,4784.6,1.35]
[1756001402634,3.2101,4784.7,4784.6,1.35]
[1756001402935,3.2078,4784.7,4784.6,1.35]
[1756001405330,3.21,4784.7,4784.6,1.35]
[1756001406730,0.41818,4784.2,4783.9,3.2078]
[1756001406939,0.0021,4784.1,4783.8,0.56651]
[1756001407134,0.0013,4784.1,4783.9,0.2369]
[1756001407439,0.0013,4784.1,4784.0,0.2361]
[1756001407639,0.0013,4784.1,4784.0,0.473]
[1756001407843,0.0021,4784.1,4784.0,0.473]
[1756001408037,0.0021,4784.1,4784.0,0.2361]
[1756001408530,0.0021,4784.1,4784.0,0.473]
[1756001408732,0.0021,4784.1,4784.0,0.2361]
[1756001409739,0.0021,4784.1,4784.0,0.6213]
[1756001410039,3.2078,4784.2,4784.1,0.96819]
[1756001410238,22.2669,4784.2,4784.1,1.78679]
[1756001415246,22.2669,4784.2,4784.1,1.44119]
[1756001415940,22.2669,4784.2,4784.1,1.78679]
[1756001417050,22.2669,4784.2,4784.1,1.44119]
[1756001418136,22.2669,4784.2,4784.1,1.023]
[1756001419352,22.2669,4784.2,4784.1,0.7813]
[1756001420047,22.2669,4784.2,4784.1,0.2361]
[1756001420949,22.73666567,4784.2,4784.1,0.2361]
[1756001421648,0.0008,4784.0,4783.0,0.8186]
[1756001421845,3.2099,4783.2,4783.1,1.3686]
[1756001422044,22.2679,4783.2,4783.1,1.3686]
[1756001422751,22.2679,4783.2,4783.1,0.2361]
[1756001422752,22.68616,4783.2,4783.1,0.2361]
[1756001423647,22.68616,4783.2,4782.8,0.2369]
[1756001423648,0.41829,4782.9,4782.8,0.2369]